bitfinex/quotes_SOLUSD_20250307
["timestamp","ask_amount","ask_price","bid_price","bid_amount"]
[1741319245142,36.44984228,141.5,141.49,0.14216157]
[1741319245459,36.44984228,141.5,141.47,46.4415]
[1741319245653,36.44984228,141.48,141.47,46.4415]
[1741319246020,0.03,141.51,141.48,0.14216157]
[1741319246219,36.44984228,141.5,141.48,0.14216157]
[1741319247118,7.0676,141.49,141.48,0.14216157]
[1741319247531,43.51744228,141.49,141.47,0.033]
[1741319247743,36.44984228,141.48,141.47,0.033]
[1741319248443,43.51744228,141.49,141.47,0.033]
[1741319248649,36.44984228,141.48,141.47,0.033]
[1741319249344,43.51794228,141.48,141.47,0.033]
[1741319249555,7.0681,141.48,141.47,0.033]
[1741319250534,29.86272693,141.48,141.47,0.033]
[1741319251555,0.03,141.51,141.47,0.17516157]
[1741319251556,7.0966,141.51,141.47,0.17516157]
[1741319251754,7.0966,141.51,141.47,46.72582314]
[1741319252056,0.03,141.51,141.47,69.52045007]
[1741319252258,0.03,141.51,141.47,46.72582314]
[1741319253833,22.79462693,141.49,141.47,46.58366157]
[1741319254436,22.79462693,141.5,141.47,358.58366157]
[1741319254834,0.03,141.51,141.47,358.58366157]
[1741319255054,22.82462693,141.51,141.47,358.58366157]
[1741319255552,22.79462693,141.49,141.47,358.58366157]
[1741319256134,22.79462693,141.49,141.47,46.58366157]
[1741319256660,22.79462693,141.48,141.47,0.033]
[1741319256964,29.86272693,141.48,141.47,0.033]
[1741319262162,7.0681,141.48,141.47,0.033]
[1741319262545,0.03,141.51,141.47,46.58366157]
[1741319262747,0.03,141.51,141.47,69.3782885]
[1741319262960,22.82462693,141.51,141.47,46.58366157]
[1741319263161,22.79462693,141.5,141.47,46.58366157]
[1741319263937,29.86192693,141.5,141.47,46.58366157]
[1741319264956,22.79462693,141.5,141.47,46.58366157]
[1741319265168,7.0967,141.51,141.47,358.58366157]
[1741319265169,0.03,141.51,141.47,358.58366157]
[1741319265467,0.03,141.49,141.47,358.58366157]
[1741319265641,0.03,141.49,141.47,46.58366157]
[1741319266145,0.03,141.49,141.47,53.65216157]
[1741319266545,0.03,141.49,141.47,46.58366157]
[1741319268449,22.82462693,141.49,141.47,46.58366157]
[1741319268970,29.89252693,141.49,141.47,46.58366157]
[1741319269344,22.82462693,141.49,141.47,46.58366157]
[1741319269745,29.89222693,141.49,141.47,46.58366157]
[1741319270970,22.82462693,141.49,141.47,46.58366157]
[1741319271348,29.89222693,141.49,141.47,46.58366157]
[1741319272862,22.82462693,141.49,141.47,46.58366157]
[1741319273058,29.89232693,141.49,141.47,46.58366157]
[1741319273648,22.82462693,141.49,141.47,46.58366157]
[1741319274804,29.89232693,141.49,141.47,46.58366157]
[1741319277188,29.89232693,141.49,141.47,358.58366157]
[1741319279473,22.82462693,141.49,141.47,358.58366157]
[1741319280191,0.03,141.49,141.47,358.58366157]
[1741319281787,0.03,141.49,141.47,46.58366157]
[1741319281981,22.82462693,141.49,141.47,46.58366157]
[1741319282487,14.61712466,141.49,141.47,46.58366157]
[1741319282691,0.03,141.49,141.47,46.58366157]
[1741319284692,0.03,141.49,141.48,312.28432314]
[1741319284875,0.03,141.49,141.48,352.28109666]
[1741319285285,0.03,141.49,141.48,319.04432314]
[1741319285676,0.03,141.49,141.48,318.90216157]
[1741319285978,7.0976,141.49,141.48,312.0]
[1741319286178,21.68472466,141.49,141.48,312.14216157]
[1741319286378,21.68472466,141.49,141.47,46.4415]
[1741319286580,22.79603163,141.48,141.47,46.4415]
[1741319286893,29.89363163,141.49,141.47,46.58366157]
[1741319287093,0.03,141.49,141.48,0.14216157]
[1741319287674,22.82603163,141.49,141.47,46.4415]
[1741319287869,22.79603163,141.48,141.47,46.4415]
[1741319288093,22.82603163,141.49,141.48,0.14216157]
[1741319288791,22.82603163,141.49,141.47,0.033]
[1741319288991,22.79603163,141.48,141.47,0.033]
[1741319289189,45.59206326,141.48,141.4,46.4415]
[1741319289409,22.79603163,141.42,141.4,0.033]
[1741319289695,22.79603163,141.44,141.4,0.17516157]
[1741319289896,22.79603163,141.46,141.4,65.375472]
[1741319290096,29.86463163,141.47,141.42,0.14216157]
[1741319290598,22.79603163,141.46,141.42,0.14216157]
[1741319290794,22.79603163,141.46,141.41,0.14216157]
[1741319292301,22.79603163,141.46,141.43,0.14216157]
[1741319292498,11.02326749,141.47,141.43,0.14216157]
[1741319292801,33.81929912,141.47,141.43,0.14216157]
[1741319293577,11.02326749,141.47,141.43,65.342472]
[1741319293783,11.02326749,141.47,141.43,88.13850363]
[1741319293981,11.02326749,141.47,141.43,65.342472]
[1741319294606,29.89373163,141.49,141.43,72.412872]
[1741319294823,22.79603163,141.48,141.43,184.49282314]
[1741319295100,22.79603163,141.47,141.43,184.35066157]
[1741319295280,22.79603163,141.45,141.43,184.2085]
[1741319295583,22.79603163,141.45,141.4,53.2015]
[1741319295783,22.79603163,141.45,141.4,365.2015]
[1741319295990,22.79603163,141.44,141.4,358.4415]
[1741319296385,22.79603163,141.47,141.4,358.4415]
[1741319296386,22.79603163,141.42,141.4,358.4415]
[1741319296601,7.0716,141.41,141.4,46.4415]
[1741319296787,29.86763163,141.41,141.38,0.033]
[1741319296999,22.79603163,141.39,141.38,0.033]
[1741319297487,29.55603163,141.39,141.32,46.4085]
[1741319297691,22.79603163,141.33,141.3,184.2085]
[1741319297899,22.79603163,141.33,141.3,46.4085]
[1741319298093,22.79603163,141.34,141.3,46.4085]
[1741319298293,22.79603163,141.34,141.31,0.14216157]
[1741319298601,22.79603163,141.34,141.3,46.4085]
[1741319299007,22.79603163,141.33,141.3,46.4085]
[1741319299194,22.79603163,141.33,141.31,0.14216157]
[1741319299589,22.79603163,141.33,141.31,312.0]
[1741319300103,22.79603163,141.33,141.32,0.14216157]
[1741319300305,22.79603163,141.33,141.3,46.4085]
[1741319300484,22.79603163,141.31,141.28,0.033]
[1741319300684,82.0,141.34,141.28,0.033]
[1741319300899,82.0,141.34,141.28,0.17516157]
[1741319300900,22.79603163,141.33,141.28,0.17516157]
[1741319301105,104.79603163,141.34,141.28,0.17516157]
[1741319301305,22.79603163,141.33,141.29,0.14216157]
[1741319301493,22.79603163,141.32,141.29,0.14216157]
[1741319302088,22.79603163,141.32,141.3,0.033]
[1741319302344,22.79603163,141.31,141.3,0.033]
[1741319302989,22.79603163,141.32,141.3,0.033]
[1741319303215,22.79603163,141.31,141.3,0.033]
[1741319303393,22.79603163,141.31,141.3,312.033]
[1741319303587,22.79603163,141.31,141.3,0.033]
[1741319303786,22.79603163,141.33,141.3,0.033]
[1741319303985,7.19872412,141.37,141.31,0.14216157]
[1741319304220,22.79603163,141.37,141.31,42.53596597]
[1741319304416,22.79603163,141.36,141.31,42.53596597]
[1741319304926,22.79603163,141.35,141.31,42.53596597]
[1741319305220,22.79603163,141.32,141.3,0.033]
[1741319305393,22.79603163,141.31,141.3,0.033]
[1741319306788,29.87263163,141.31,141.3,0.033]
[1741319306993,22.79603163,141.29,141.28,0.033]
[1741319307895,7.0766,141.31,141.28,0.033]
[1741319308194,22.79603163,141.3,141.28,0.033]
[1741319308506,22.79603163,141.29,141.28,0.033]
[1741319308912,7.0762,141.32,141.28,0.033]
[1741319309099,22.79603163,141.32,141.28,0.033]
[1741319309491,22.79603163,141.32,141.29,0.14216157]
[1741319309696,22.79603163,141.34,141.29,42.67812754]
[1741319310123,22.79603163,141.33,141.29,42.53596597]
[1741319310309,7.0753,141.34,141.29,42.53596597]
[1741319310498,29.87133163,141.34,141.29,354.53596597]
[1741319310695,22.79603163,141.35,141.3,0.14216157]
[1741319310901,22.79603163,141.35,141.31,0.14216157]
[1741319311308,29.87013163,141.36,141.31,0.14216157]
[1741319311508,22.79603163,141.38,141.33,0.14216157]
[1741319311703,22.79603163,141.38,141.33,42.53596597]
[1741319313026,7.0721,141.4,141.34,0.14216157]
[1741319313324,22.79603163,141.4,141.34,0.14216157]
[1741319313623,22.79603163,141.4,141.35,0.14216157]
[1741319313826,22.79603163,141.4,141.36,0.14216157]
[1741319314005,22.79603163,141.41,141.37,0.14216157]
[1741319314319,29.86783163,141.41,141.37,0.14216157]
[1741319315022,22.79603163,141.38,141.37,0.14216157]
[1741319315222,22.79603163,141.38,141.34,6.1786]
[1741319315721,22.79603163,141.38,141.35,0.14216157]
[1741319315925,22.79603163,141.36,141.33,42.3938044]
[1741319316108,22.79603163,141.39,141.34,0.28432314]
[1741319316433,22.79603163,141.39,141.34,42.67812754]
[1741319316939,22.79603163,141.4,141.34,65.47415917]
[1741319317133,22.79603163,141.39,141.34,42.67812754]
[1741319317631,22.79603163,141.39,141.37,0.14216157]
[1741319317933,29.86833163,141.4,141.37,42.53596597]
[1741319318135,22.79603163,141.38,141.37,42.53596597]
[1741319318337,22.79603163,141.38,141.34,42.3938044]
[1741319318513,22.79603163,141.37,141.34,42.3938044]
[1741319319126,29.87013163,141.36,141.34,42.3938044]
[1741319319628,7.0741,141.36,141.35,0.14216157]
[1741319320008,29.87013163,141.36,141.35,0.14216157]
[1741319320633,17.68,141.41,141.35,0.14216157]
[1741319320846,22.79603163,141.39,141.35,0.14216157]
[1741319321137,7.0731,141.38,141.35,312.14216157]
[1741319321319,22.79603163,141.39,141.35,312.14216157]
[1741319321320,29.86873163,141.39,141.35,312.14216157]
[1741319321906,22.79603163,141.36,141.3,48.9570044]
[1741319322127,22.79603163,141.34,141.3,48.9570044]
[1741319322334,22.79603163,141.34,141.31,0.14216157]
[1741319322527,22.79603163,141.34,141.3,48.9570044]
[1741319322917,22.79603163,141.34,141.31,0.14216157]
[1741319323422,24.7576,141.37,141.31,0.14216157]
[1741319323734,22.79603163,141.34,141.31,0.14216157]
[1741319324121,22.79603163,141.35,141.31,0.14216157]
[1741319324515,22.79603163,141.34,141.31,0.14216157]
[1741319324711,22.79603163,141.32,141.28,0.033]
[1741319324918,22.79603163,141.3,141.28,0.033]
[1741319325124,7.0776,141.29,141.28,0.033]
[1741319325650,29.87363163,141.29,141.28,0.033]
[1741319326547,36.57504929,141.29,141.28,0.033]
[1741319327713,36.57504929,141.3,141.28,0.033]
[1741319328126,36.57504929,141.29,141.28,0.033]
[1741319328636,43.65264929,141.29,141.28,0.033]
[1741319329017,43.65224929,141.3,141.28,0.033]
[1741319329447,36.57504929,141.29,141.28,0.033]
[1741319329818,7.0772,141.3,141.28,0.033]
[1741319330014,7.0761,141.32,141.28,312.033]
[1741319330218,36.57504929,141.3,141.28,312.033]
[1741319331145,36.57504929,141.3,141.28,0.033]
[1741319331434,43.65234929,141.3,141.28,0.033]
[1741319331640,36.57504929,141.33,141.28,0.033]
[1741319331851,36.57504929,141.35,141.29,36.85937243]
[1741319332032,36.57504929,141.34,141.29,42.53596597]
[1741319332400,36.57504929,141.33,141.29,42.53596597]
[1741319332518,24.7594,141.36,141.29,42.53596597]
[1741319332519,36.57504929,141.32,141.29,42.53596597]
[1741319332723,36.57504929,141.31,141.29,42.53596597]
[1741319332923,36.57504929,141.31,141.29,42.3938044]
[1741319333230,43.65164929,141.31,141.3,0.14216157]
[1741319333627,43.65164929,141.31,141.28,0.033]
[1741319333822,36.57504929,141.3,141.28,0.033]
[1741319334626,7.0766,141.31,141.28,0.033]
[1741319334940,43.65164929,141.31,141.28,0.033]
[1741319337360,36.57504929,141.3,141.28,0.033]
[1741319337747,36.57504929,141.3,141.29,0.14216157]
[1741319338051,43.65214929,141.3,141.29,0.14216157]
[1741319338448,0.03,141.32,141.29,0.14216157]
[1741319338449,43.68154929,141.32,141.29,0.14216157]
[1741319338656,0.03,141.32,141.29,0.14216157]
[1741319339657,0.03,141.32,141.29,0.28432314]
[1741319339858,0.03,141.32,141.29,36.85937243]
[1741319340158,0.03,141.32,141.29,0.28432314]
[1741319340355,36.60504929,141.32,141.28,42.4268044]
[1741319340547,36.57504929,141.31,141.28,42.4268044]
[1741319340747,36.57504929,141.31,141.29,0.14216157]
[1741319340949,36.57504929,141.31,141.28,42.4268044]
[1741319341149,36.57504929,141.3,141.28,42.4268044]
[1741319341342,36.57504929,141.3,141.29,0.14216157]
[1741319342262,43.65214929,141.3,141.29,0.14216157]
[1741319343968,0.03,141.32,141.29,42.53596597]
[1741319344560,36.60504929,141.32,141.29,42.53596597]
[1741319344973,0.03,141.32,141.29,42.53596597]
[1741319346549,36.60504929,141.32,141.29,42.53596597]
[1741319346865,36.60504929,141.32,141.29,354.53596597]
[1741319347260,36.57504929,141.31,141.29,42.3938044]
[1741319347465,36.57504929,141.3,141.28,0.033]
[1741319347762,36.57504929,141.29,141.28,0.033]
[1741319348337,36.57504929,141.3,141.28,0.033]
[1741319348660,7.0776,141.29,141.28,0.033]
[1741319349752,36.57504929,141.3,141.28,0.033]
[1741319349954,36.57504929,141.31,141.28,0.033]
[1741319350154,43.68124929,141.32,141.28,0.033]
[1741319350354,43.68124929,141.32,141.29,0.14216157]
[1741319350973,36.57504929,141.31,141.29,0.14216157]
[1741319351167,43.65164929,141.31,141.29,0.14216157]
[1741319352571,29.92642956,141.31,141.29,0.14216157]
[1741319353068,22.84982956,141.3,141.28,42.4268044]
[1741319353465,29.92642956,141.31,141.29,0.14216157]
[1741319353663,22.84982956,141.31,141.29,0.14216157]
[1741319353883,29.95602956,141.32,141.29,0.14216157]
[1741319354664,22.84982956,141.31,141.29,0.14216157]
[1741319355047,22.84982956,141.3,141.28,0.033]
[1741319355657,22.84982956,141.29,141.28,0.033]
[1741319356374,82.0,141.3,141.28,0.033]
[1741319356551,29.92742956,141.29,141.28,0.033]
[1741319357752,22.84982956,141.24,141.21,177.8938044]
[1741319357952,22.84982956,141.23,141.19,48.8750044]
[1741319358158,22.84982956,141.22,141.19,42.3938044]
[1741319358484,22.84982956,141.23,141.19,42.3938044]
[1741319358652,82.0,141.28,141.15,168.613]
[1741319358653,22.84982956,141.2,141.15,168.613]
[1741319358862,22.84982956,141.17,141.15,168.613]
[1741319359365,22.84982956,141.18,141.15,0.033]
[1741319359554,22.84982956,141.19,141.15,196.57645326]
[1741319359879,22.84982956,141.2,141.16,0.28432314]
[1741319360070,22.84982956,141.2,141.16,42.53596597]
[1741319360378,22.84982956,141.17,141.14,0.033]
[1741319360671,36.65330031,141.15,141.14,0.033]
[1741319361654,43.73790031,141.15,141.14,0.033]
[1741319362071,36.65330031,141.15,141.14,0.033]
[1741319362777,43.73790031,141.15,141.14,0.033]
[1741319362955,82.14216157,141.14,141.07,1.9829005]
[1741319363160,36.65330031,141.12,141.07,1.9829005]
[1741319363367,93.55151884,141.16,141.08,0.14216157]
[1741319363555,36.65330031,141.11,141.08,0.14216157]
[1741319363973,36.65330031,141.11,141.08,312.14216157]
[1741319364179,82.0,141.15,141.09,0.14216157]
[1741319364375,36.65330031,141.13,141.1,0.14216157]
[1741319364675,36.65330031,141.14,141.1,42.53596597]
[1741319364866,36.65330031,141.16,141.12,0.14216157]
[1741319365186,82.0,141.18,141.12,0.28432314]
[1741319365363,82.0,141.18,141.12,55.58727231]
[1741319365566,36.65330031,141.19,141.12,79.33142785]
[1741319365772,36.65330031,141.19,141.14,0.14216157]
[1741319366171,36.65330031,141.2,141.14,196.8277764]
[1741319366376,6.1331,141.23,141.14,233.48107671]
[1741319366570,36.65330031,141.21,141.16,0.14216157]
[1741319366861,36.65330031,141.24,141.18,0.28432314]
[1741319367068,36.65330031,141.24,141.18,214.83142785]
[1741319367378,36.65330031,141.24,141.2,0.14216157]
[1741319367770,36.65330031,141.24,141.21,0.14216157]
[1741319367965,47.6765678,141.25,141.21,0.14216157]
[1741319368166,11.02326749,141.25,141.21,0.14216157]
[1741319368379,36.65330031,141.26,141.21,0.14216157]
[1741319368580,36.65330031,141.27,141.23,0.14216157]
[1741319368958,36.65330031,141.26,141.23,0.14216157]
[1741319369773,36.65330031,141.28,141.23,7.36482314]
[1741319369968,36.65330031,141.28,141.23,42.67812754]
[1741319370562,19.27937096,141.31,141.23,42.53596597]
[1741319370778,36.65330031,141.27,141.23,42.53596597]
[1741319371180,36.65330031,141.26,141.23,42.53596597]
[1741319371379,36.65330031,141.26,141.22,0.14216157]
[1741319371588,36.65330031,141.27,141.22,312.14216157]
[1741319371766,36.65330031,141.26,141.22,312.0]
[1741319372168,36.65330031,141.26,141.22,0.14216157]
[1741319372575,36.65330031,141.25,141.18,205.35330031]
[1741319372885,36.65330031,141.25,141.2,0.14216157]
[1741319373281,36.65330031,141.25,141.22,0.033]
[1741319374588,7.0791,141.26,141.22,0.033]
[1741319374589,36.65330031,141.26,141.22,0.033]
[1741319374895,7.0787,141.27,141.22,0.033]
[1741319374896,36.65330031,141.25,141.22,0.033]
[1741319375678,36.65330031,141.23,141.14,42.3938044]
[1741319375873,36.65330031,141.18,141.14,42.3938044]
[1741319376073,36.65330031,141.17,141.12,48.5578044]
[1741319376291,7.0807,141.23,141.15,18.79181043]
[1741319376495,36.65330031,141.21,141.17,0.28432314]
[1741319376867,36.65330031,141.21,141.17,42.53596597]
[1741319377076,7.0807,141.23,141.17,42.53596597]
[1741319377077,36.65330031,141.19,141.17,42.53596597]
[1741319377281,36.65330031,141.18,141.14,49.1938044]
[1741319377494,36.65330031,141.18,141.15,0.14216157]
[1741319378187,36.65330031,141.19,141.15,0.28432314]
[1741319378390,36.65330031,141.21,141.15,26.018472]
[1741319378577,36.65330031,141.21,141.15,240.56557671]
[1741319378781,36.65330031,141.21,141.15,490.17812754]
[1741319378989,36.65330031,141.2,141.15,490.17812754]
[1741319379174,36.65330031,141.19,141.14,25.44964886]
[1741319379375,36.65330031,141.19,141.15,0.28432314]
[1741319380491,36.65330031,141.2,141.15,0.28432314]
[1741319380667,36.65330031,141.19,141.15,0.28432314]
[1741319380866,36.65330031,141.2,141.15,0.28432314]
[1741319381292,36.65330031,141.21,141.15,68.4123764]
[1741319381496,36.65330031,141.22,141.15,105.06567671]
[1741319381685,36.65330031,141.22,141.17,0.28432314]
[1741319381996,43.73400031,141.23,141.17,0.28432314]
[1741319382166,7.0807,141.23,141.17,312.28432314]
[1741319382366,43.73400031,141.23,141.17,312.28432314]
[1741319382591,36.65330031,141.23,141.17,356.02102345]
[1741319382900,36.65330031,141.23,141.17,0.28432314]
[1741319383473,36.65330031,141.22,141.17,0.28432314]
[1741319383990,36.65330031,141.21,141.16,0.14216157]
[1741319384175,36.65330031,141.2,141.16,0.14216157]
[1741319384568,36.65330031,141.2,141.15,42.3938044]
[1741319384569,36.65330031,141.19,141.15,42.3938044]
[1741319384780,43.73570031,141.2,141.16,0.14216157]
[1741319385091,43.73570031,141.2,141.15,42.3938044]
[1741319385305,36.65330031,141.19,141.16,0.14216157]
[1741319385976,36.65330031,141.18,141.14,42.3938044]
[1741319386187,36.65330031,141.15,141.13,0.033]
[1741319386490,36.65330031,141.14,141.13,0.033]
[1741319386893,43.73840031,141.14,141.13,0.033]
[1741319389294,36.65330031,141.14,141.13,0.033]
[1741319389604,36.65330031,141.15,141.13,0.033]
[1741319390785,125.49330031,141.19,141.13,0.033]
[1741319390786,36.65330031,141.16,141.13,0.033]
[1741319391306,36.65330031,141.14,141.13,0.033]
[1741319391693,36.65330031,141.15,141.13,0.033]
[1741319393388,36.65330031,141.14,141.13,0.033]
[1741319395297,43.73840031,141.14,141.1,0.14216157]
[1741319395498,36.65330031,141.11,141.07,44.3767049]
[1741319395689,36.65330031,141.09,141.08,0.14216157]
[1741319396195,36.65330031,141.09,141.07,1.9829005]
[1741319396405,36.65330031,141.09,141.08,0.14216157]
[1741319397006,36.65330031,141.12,141.08,0.14216157]
[1741319397197,36.65330031,141.1,141.08,0.14216157]
[1741319397506,36.65330031,141.11,141.08,0.14216157]
[1741319397690,83.5969,141.14,141.08,0.14216157]
[1741319397885,36.65330031,141.12,141.08,0.14216157]
[1741319398081,36.65330031,141.11,141.08,0.14216157]
[1741319398307,36.65330031,141.09,141.07,1.9829005]
[1741319398705,36.65330031,141.1,141.08,0.14216157]
[1741319399004,1.5969,141.14,141.08,0.28432314]
[1741319399194,36.65330031,141.12,141.08,42.67812754]
[1741319399390,36.65330031,141.12,141.08,361.76622754]
[1741319400193,36.65330031,141.12,141.08,354.53596597]
[1741319400600,36.65330031,141.11,141.08,354.53596597]
[1741319400910,1.5194,141.17,141.1,0.14216157]
[1741319401089,36.65330031,141.17,141.11,0.14216157]
[1741319401289,36.65330031,141.17,141.12,0.14216157]
[1741319401495,36.65330031,141.17,141.14,0.14216157]
[1741319402194,36.65330031,141.15,141.14,0.14216157]
[1741319403114,36.65330031,141.16,141.12,0.14216157]
[1741319404113,36.65330031,141.16,141.12,312.14216157]
[1741319404701,36.65330031,141.15,141.12,312.14216157]
[1741319405217,118.65330031,141.19,141.12,312.14216157]
[1741319405218,36.65330031,141.16,141.12,312.14216157]
[1741319405703,36.65330031,141.15,141.12,312.14216157]
[1741319407230,36.65330031,141.16,141.12,312.14216157]
[1741319407893,1.5194,141.2,141.14,0.14216157]
[1741319408097,36.65330031,141.19,141.14,42.53596597]
[1741319408410,36.65330031,141.17,141.14,42.53596597]
[1741319408598,8.6016,141.2,141.14,42.53596597]
[1741319408799,36.65330031,141.18,141.14,42.53596597]
[1741319409195,36.65330031,141.17,141.14,42.53596597]
[1741319409527,36.65330031,141.15,141.14,42.3938044]
[1741319409729,36.65330031,141.15,141.13,6.84]
[1741319410024,36.65330031,141.16,141.14,0.14216157]
[1741319411025,36.65330031,141.18,141.14,312.14216157]
[1741319411226,36.65330031,141.18,141.14,319.22716157]
[1741319411828,36.65330031,141.19,141.14,319.22716157]
[1741319412008,0.03,141.22,141.16,0.14216157]
[1741319412203,36.65330031,141.21,141.16,42.53596597]
[1741319412514,22.88393845,141.2,141.16,42.53596597]
[1741319413130,7.1114,141.22,141.16,42.53596597]
[1741319413321,22.88393845,141.19,141.16,42.53596597]
[1741319413502,0.03,141.22,141.16,42.53596597]
[1741319413703,0.03,141.22,141.19,23.02610002]
[1741319414006,0.03,141.22,141.21,0.14216157]
[1741319414825,0.03,141.22,141.21,79.12191996]
[1741319415014,0.03,141.22,141.21,409.91373039]
[1741319415216,0.03,141.22,141.21,553.30183039]
[1741319415427,0.03,141.22,141.21,496.41736597]
[1741319416019,0.03,141.22,141.21,246.87673039]
[1741319416399,0.03,141.22,141.21,184.55952754]
[1741319416804,0.03,141.22,141.21,246.87673039]
[1741319418517,0.03,141.22,141.21,210.8293764]
[1741319419029,0.03,141.22,141.21,522.8293764]
[1741319421525,0.03,141.22,141.21,559.41533039]
[1741319421737,0.03,141.28,141.22,18.933972]
[1741319421917,0.03,141.28,141.26,0.14216157]
[1741319422237,0.03,141.28,141.27,0.14216157]
[1741319423816,0.03,141.28,141.27,61.3277764]
[1741319424020,0.03,141.28,141.27,104.99233039]
[1741319424331,0.03,141.28,141.27,61.3277764]
[1741319424527,0.03,141.28,141.27,68.4063764]
[1741319424713,0.03,141.28,141.27,42.67812754]
[1741319425130,0.03,141.28,141.27,354.67812754]
[1741319426719,0.03,141.28,141.27,373.3277764]
[1741319426912,0.03,141.28,141.27,240.49233039]
[1741319427140,0.0001,141.28,141.27,240.49233039]
[1741319427517,0.0001,141.28,141.27,203.9063764]
[1741319427926,0.0001,141.28,141.27,42.3938044]
[1741319428335,0.0001,141.28,141.27,42.67812754]
[1741319428637,0.0001,141.28,141.27,42.53596597]
[1741319428838,0.0001,141.28,141.27,42.67812754]
[1741319429045,0.0001,141.28,141.27,68.4063764]
[1741319429354,0.0001,141.28,141.27,241.97819864]
[1741319429553,0.0001,141.28,141.27,240.49233039]
[1741319429920,0.0001,141.28,141.27,552.49233039]
[1741319431443,0.0001,141.28,141.27,558.66733039]
[1741319431626,0.03,141.31,141.28,20.933972]
[1741319431952,0.03,141.31,141.3,55.51992599]
[1741319433331,0.03,141.31,141.3,62.59702599]
[1741319433655,0.03,141.31,141.3,69.15270285]
[1741319433827,0.03,141.31,141.3,69.43702599]
[1741319435126,0.03,141.31,141.3,381.43702599]
[1741319435331,0.03,141.31,141.3,559.33083039]
[1741319436638,0.03,141.31,141.3,545.57101161]
[1741319438952,0.03,141.37,141.31,20.933972]
[1741319439152,0.03,141.37,141.36,41.76010721]
[1741319439338,0.03,141.38,141.37,18.933972]
[1741319439646,0.03,141.38,141.37,221.13854217]
[1741319439849,0.03,141.38,141.37,226.72751161]
[1741319440041,0.03,141.38,141.37,203.9013764]
[1741319440246,0.03,141.38,141.37,61.3277764]
[1741319440757,0.03,141.38,141.37,68.4013764]
[1741319442055,0.03,141.38,141.37,380.4013764]
[1741319442472,0.03,141.38,141.37,42.3938044]
[1741319442770,0.03,141.38,141.37,61.3277764]
[1741319442946,0.03,141.38,141.37,68.4013764]
[1741319444241,0.03,141.38,141.37,203.9013764]
[1741319444636,0.03,141.38,141.37,178.03596597]
[1741319444969,22.85613521,141.38,141.37,42.3938044]
[1741319445273,22.85613521,141.38,141.35,49.2138044]
[1741319445447,22.82613521,141.36,141.32,42.3938044]
[1741319445652,22.82613521,141.33,141.28,354.3938044]
[1741319445971,22.82613521,141.29,141.28,42.3938044]
[1741319446169,22.82613521,141.29,141.27,0.033]
[1741319446335,22.82613521,141.28,141.27,0.17516157]
[1741319446638,22.82613521,141.28,141.27,0.033]
[1741319448361,29.90423521,141.28,141.27,0.033]
[1741319448662,43.67056797,141.28,141.27,0.033]
[1741319449577,36.59246797,141.28,141.27,0.033]
[1741319451265,1.5974,141.31,141.27,0.033]
[1741319451450,36.59246797,141.28,141.27,0.033]
[1741319451650,36.59246797,141.3,141.27,0.033]
[1741319452182,36.59246797,141.28,141.27,0.033]
[1741319453653,8.6744,141.31,141.27,0.033]
[1741319453858,36.59246797,141.28,141.27,0.033]
[1741319455876,1.5974,141.31,141.27,0.033]
[1741319456172,36.59246797,141.28,141.27,0.033]
[1741319456378,8.6741,141.31,141.27,0.033]
[1741319456379,1.5974,141.31,141.27,0.033]
[1741319456681,36.59246797,141.28,141.27,0.033]
[1741319457064,8.674,141.31,141.27,0.033]
[1741319457265,36.59246797,141.28,141.27,0.033]
[1741319458069,1.5974,141.31,141.27,0.17516157]
[1741319458283,38.18986797,141.31,141.27,0.17516157]
[1741319459058,38.18986797,141.31,141.28,0.28432314]
[1741319459663,1.5465,141.35,141.28,42.67812754]
[1741319459872,36.59246797,141.33,141.3,0.28432314]
[1741319460083,36.59246797,141.33,141.3,0.14216157]
[1741319460283,36.59246797,141.31,141.3,0.14216157]
[1741319460578,1.5465,141.35,141.29,18.933972]
[1741319460881,1.5465,141.35,141.29,196.8277764]
[1741319461093,38.13896797,141.35,141.32,0.14216157]
[1741319461295,36.59246797,141.35,141.32,42.67812754]
[1741319461753,36.59246797,141.36,141.32,42.67812754]
[1741319461959,36.59246797,141.35,141.32,42.67812754]
[1741319462187,0.03,141.38,141.34,0.28432314]
[1741319462359,36.59246797,141.37,141.34,42.67812754]
[1741319462771,0.03,141.38,141.34,42.67812754]
[1741319462967,36.59246797,141.36,141.34,42.67812754]
[1741319463484,36.59246797,141.35,141.34,42.53596597]